Cogmind - Beta 16 @@@ ROGUE MODE // 2025.11.02 @ 19:04:40 Player: Red Box Result: Destroyed by Y-54 Guardian with Gatling Laser Performance ------------- Evolutions (0) 0 Regions Visited (3) 600 Robots Destroyed (39) 195 Value Destroyed (781) 781 Prototype IDs (3) 60 Alien Tech Used (0) 0 Bonus (0) 0 TOTAL SCORE: 1636 Bonus ------- None Cogmind --------- Core Integrity 0/250 Matter 260/300 Energy 200/200 System Corruption 0% Temperature Cool (12) Movement Treading (240) Ox1 Location -7/Recycling Parts ------- > --- POWER (1) -------- Subdweller Power Source > --- PROPULSION (2) --- Light Treads Wheel > --- UTILITY (2) ------ Large Storage Unit Hacking Suite > --- WEAPON (2) ------- Subdweller Machine Gun Subdweller Machine Gun > --- INVENTORY (15) --- Subdweller Monowheel Armored Huge Wheel Improved Cooling System High-capacity Battery (250) Scrap Shield Authchip [Armor] Subdweller Laser Subdweller Laser Heavy Laser EM Pulse Cannon Advanced Assault Cannon Gauss Cannon Chainsword Peak State ------------ > --- POWER ------------ Subdweller Power Source > --- PROPULSION ------- Light Treads Wheel > --- UTILITY ---------- Large Storage Unit Hacking Suite > --- WEAPON ----------- Subdweller Machine Gun Chainsword > --- INVENTORY -------- Subdweller Monowheel Armored Huge Wheel Improved Heat Sink High-capacity Battery Scrap Shield Authchip [Armor] Subdweller Laser Subdweller Laser Heavy Laser EM Pulse Cannon Subdweller Machine Gun Advanced Assault Cannon Gauss Cannon [Rating: 18] Favorites ----------- Power Ion Engine Engine Ion Engine Propulsion Aluminum Leg Treads Light Treads Leg Aluminum Leg Wheel Wheel Utility Large Storage Unit Device Improved Terrain Scanner Storage Large Storage Unit Hackware Hacking Suite Protection Core Shielding Weapon Medium Laser Energy Gun Medium Laser Ballistic Gun Subdweller Machine Gun Special Weapon Mining Laser Slashing Weapon Chainsword Build | -11 -10 -10 -7 ------- Run | Yrd Mat Sub Rec Slots Evolved . | . . . . Power . | . . . . Propulsion . | . . . . Utility . | . . . . Weapon . | . . . . Parts Attached 33 | 7 9 13 4 Power 4 | 1 1 1 1 Engine 4 | 1 1 1 1 Core . | . . . . Reactor . | . . . . Propulsion 10 | 2 2 5 1 Treads 2 | . . 1 1 Leg 4 | 2 2 . . Wheel 4 | . . 4 . Hover . | . . . . Flight . | . . . . Utility 8 | 2 3 2 1 Device 2 | 1 1 . . Storage 3 | 1 1 1 . Processor . | . . . . Hackware 1 | . . . 1 Protection 2 | . 1 1 . Artifact . | . . . . Weapon 11 | 2 3 5 1 Energy Gun 5 | 1 2 2 . Energy Cannon . | . . . . Ballistic Gun 3 | 1 . 2 . Ballistic Cannon . | . . . . Launcher . | . . . . Special Weapon 2 | . 1 1 . Impact Weapon . | . . . . Slashing Weapon 1 | . . . 1 Piercing Weapon . | . . . . Special Melee Weapon . | . . . . Unidentified Prototypes . | . . . . Parts Lost 6 | . . 6 . Power 1 | . . 1 . Propulsion 3 | . . 3 . Utility . | . . . . Weapon 2 | . . 2 . Highest Loss Streak 4 | . . 4 . To Critical Strikes . | . . . . Average Backups 10 | 5 8 12 13 Power . | . . . . Propulsion 4 | 3 4 4 2 Utility 2 | . 1 4 4 Weapon 2 | 1 2 3 4 Tool/Special . | . . . . Unused Backups 15 | . . 2 13 Power 1 | . . 1 . Propulsion 3 | . . . 3 Utility 6 | . . 1 5 Weapon 5 | . . . 5 Tool/Special . | . . . . Average Slot Usage (%) 99 | . 100 97 99 Engine 13 | . 14 13 14 Treads 4 | . . 3 14 Leg 18 | . 28 15 . Wheel 5 | . . 8 14 Device 5 | . 11 . . Storage 13 | . 14 13 14 Hackware 1 | . . . 7 Protection 6 | . 2 12 5 Energy Gun 15 | . 17 20 . Ballistic Gun 12 | . 9 6 27 Peak Build Rating 18 | 9 10 12 18 Average Rating 9 | 5 9 9 14 On Entrance 7 | . 9 8 12 Avg Prop Armor Cover (%) 12 | . . 12 12 Naked Turns . | . . . . Heaviest Build 34 | 14 20 34 34 Greatest Support 30 | 20 20 30 20 Greatest Overweight (x) 3 | . . 3 3 Average Overweight (x) . | . . 1 2 Largest Inventory Capacity 15 | 8 10 15 15 Average Capacity 11 | 7 9 14 15 Most Carried 15 | 6 10 15 15 Average Carried 10 | 5 8 14 14 Final Capacity 15 | 8 10 15 15 Final Carried 15 | 6 10 15 15 Class Distribution -------------------- 100% | Mutant Dominant Class ---------------- Mutant | -10/Materials Mutant | -10/Subcaves Mutant | -7/Recycling Resources | -11 -10 -10 -7 ----------- Run | Yrd Mat Sub Rec Matter Collected 749 | 320 145 258 26 Remotely . | . . . . Salvage Created 1100 | 257 382 392 69 Parts 90 | 24 33 31 2 Haulers Intercepted . | . . . . Recyclers Shooed 2 | 1 1 . . Parts Field Recycled . | . . . . Retrieved Matter . | . . . . Parts Self-Destructed 23 | . . 23 . Prevented . | . . . . Parts Restored . | . . . . Kills | -11 -10 -10 -7 ------- Run | Yrd Mat Sub Rec Combat Hostiles Destroyed 24 | . 12 12 . Guns 24 | . 12 12 . Classes Destroyed 7 | 2 3 2 . Tunneler 9 | 9 . . . Recycler 2 | 1 . . 1 Turret 2 | . . 2 . Watcher 2 | . 2 . . Swarmer 11 | . 6 5 . Grunt 6 | . 6 . . Subdweller 7 | . . 7 . Best Kill Streak 6 | 3 6 3 1 Combat Bots Only 6 | . 6 3 . Max Kills in Single Turn 2 | 1 2 1 1 Gunslinging 1 | . 1 . . Exploded . | . . . . Melee . | . . . . Uniques/NPCs Destroyed . | . . . . Combat | -11 -10 -10 -7 -------- Run | Yrd Mat Sub Rec Hostile Shots Fired 164 | . 43 100 21 Missed 62 | . 14 37 11 Hits 102 | . 29 63 10 Projectile 102 | . 29 63 10 Critical Strikes 1 | . . 1 . Damage Taken 1126 | . 249 808 69 Core 251 | . 81 127 43 Absorbed by Shields . | . . . . Redirected to Shielding 27 | . . 27 . Regen/Repaired (Parts) 28 | . 28 . . Core Remaining (%) 100 | 100 . . . Volleys Fired 155 | 50 51 48 6 Largest 2 | 2 2 2 2 Hottest 120 | 60 100 120 60 Shots Fired 260 | 72 86 94 8 Gun 244 | 72 72 92 8 Cannon . | . . . . Launcher . | . . . . Special 16 | . 14 2 . Kinetic 129 | 50 35 36 8 Thermal 80 | . 22 58 . Explosive . | . . . . Electromagnetic 51 | 22 29 . . Robot Hit Streak 15 | 7 15 13 2 Robot Miss Streak 5 | 4 5 5 2 Penetration Max . | . . . . Secondary Targets 2 | . 2 . . Max Gunslinging Chain 1 | . 1 . . Shots Hit Robots 144 | 44 38 59 3 Core Hits 59 | 15 19 24 1 Critical Kills . | . . . . Critical Parts Destroyed 2 | 1 1 . . Critical Strikes 8 | 1 1 6 . Burn 6 | . . 6 . Destroy 2 | 1 1 . . Melee Attacks 3 | . . . 3 Impact . | . . . . Slashing 3 | . . . 3 Piercing . | . . . . Sneak Attacks . | . . . . Combat Hostiles . | . . . . Follow-up Attacks . | . . . . Damage Inflicted 1953 | 484 454 947 68 Guns 1924 | 455 454 947 68 Cannons . | . . . . Explosions 29 | 29 . . . Melee . | . . . . Ramming . | . . . . Kinetic 823 | 264 167 324 68 Thermal 679 | 29 27 623 . Explosive . | . . . . Electromagnetic 451 | 191 260 . . Impact . | . . . . Slashing . | . . . . Piercing . | . . . . Highest Corruption . | . . . . Average Corruption . | . . . . Corruption Purged . | . . . . Corruption Blocked . | . . . . Overload Shots . | . . . . Overflow Damage . | . . . . Projectiles . | . . . . Explosions . | . . . . Melee . | . . . . Knockbacks . | . . . . Impact . | . . . . Kinetic . | . . . . Secondary . | . . . . Self-Inflicted Damage . | . . . . Shots . | . . . . Rammed . | . . . . Targets Rammed . | . . . . Kicked . | . . . . Crushed . | . . . . Highest Temperature 148 | 40 148 . 7 Average Temperature 37 | 16 44 . 4 Received Heat Transfer 180 | . 54 102 24 Siege Activations . | . . . . Martial Activations . | . . . . Shielding Activations . | . . . . Robots Disrupted . | . . . . Combat Hostiles . | . . . . Robots Corrupted . | . . . . Combat Hostiles . | . . . . Parts Fried . | . . . . Impact Corruptions . | . . . . Robots Melted . | . . . . Combat Hostiles . | . . . . Parts Melted 4 | 1 . 3 . Heat Transferred 2199 | 100 74 2025 . Parts Sabotaged . | . . . . Parts Stolen . | . . . . Parts Stripped . | . . . . Power Chain Reactions 1 | 1 . . . Alert | -11 -10 -10 -7 ------- Run | Yrd Mat Sub Rec Maximum Alert Level 1 | . 1 . . Low Security (%) 82 | 100 67 . 100 Level 1 18 | . 32 . . Level 2 . | . . . . Level 3 . | . . . . Level 4 . | . . . . Level 5 . | . . . . High Security . | . . . . Max Security . | . . . . Peak Influence 256 | 10 256 . 75 Initial 75 | . . . 75 Average 65 | . 109 . 17 Influence Increases 965 | 50 485 270 160 Destroy 0b10 Robot/C 380 | . 240 140 . Destroy 0b10 Robot/NC 65 | 50 10 . 5 Destroy Leader 54 | . 44 10 . Successful Hack 41 | . 24 . 17 Select Force Hacks 180 | . 60 . 120 Disable Machine 30 | . 15 . 15 Destroy Structure 5 | . 2 . 3 Lose Combat Pursuer 210 | . 90 120 . Influence Decreases 912 | 50 322 275 265 Entered New Map 162 | . . 79 83 Time Decay 740 | 50 322 186 182 Lost Part 10 | . . 10 . Squads Dispatched 3 | . 3 . . Investigation 3 | . 3 . . Extermination . | . . . . Reinforcement . | . . . . Assault . | . . . . Garrison . | . . . . Intercept . | . . . . Searches Triggered . | . . . . Construction Impeded . | . . . . Haulers Reinforced . | . . . . Active Scanning Responses . | . . . . Cargo Convoy Interrupts . | . . . . Stealth | -11 -10 -10 -7 --------- Run | Yrd Mat Sub Rec Distress Signals . | . . . . Communications Jammed . | . . . . Distress Signals . | . . . . Times Spotted 34 | . 17 16 1 Peak Tracking Total 6 | . 6 4 1 Tactical Retreats 7 | . 4 3 . Traps | -11 -10 -10 -7 ------- Run | Yrd Mat Sub Rec Traps Triggered 4 | . 4 . . Indirectly 3 | . 3 . . Trap Hack Attempts . | . . . . Triggered . | . . . . Disarmed . | . . . . Reprogrammed . | . . . . Reused . | . . . . Traps Extracted . | . . . . Installed . | . . . . Triggered . | . . . . Machines | -11 -10 -10 -7 ---------- Run | Yrd Mat Sub Rec Machines Disabled 4 | . 1 2 1 Max in Single Turn 1 | . 1 1 1 Machines Repaired . | . . . . Machines Dismantled . | . . . . Machines Sabotaged . | . . . . Overloaded Fab Kills . | . . . . Hacking | -11 -10 -10 -7 --------- Run | Yrd Mat Sub Rec Machines Accessed 20 | . 11 . 9 Terminals 12 | . 8 . 4 Fabricators . | . . . . Repair Stations 1 | . 1 . . Recycling Units 7 | . 2 . 5 Scanalyzers . | . . . . Garrison Access . | . . . . Total Hacks 73 | . 38 . 35 Successful 43 | . 25 . 18 Failed 29 | . 12 . 17 Catastrophic 2 | . 2 . . Database Lockouts 1 | . 1 . . Manual 39 | . 21 . 18 Terminals 42 | . 28 . 14 Fabricators . | . . . . Repair Stations 3 | . 3 . . Recycling Units 28 | . 7 . 21 Scanalyzers . | . . . . Garrison Access . | . . . . Terminal Hacks 14 | . 11 . 3 Part Schematic 3 | . . . 3 Robot Analysis 3 | . 3 . . Prototype ID Bank 2 | . 2 . . Branch Access Points 1 | . 1 . . Locate Traps 1 | . 1 . . Security Status 1 | . 1 . . Recall Investigation 1 | . 1 . . Hauler Manifests 1 | . 1 . . Zone Layout 1 | . 1 . . Fabricator Hacks . | . . . . Repair Station Hacks 2 | . 2 . . Scan Component 1 | . 1 . . Repair 1 | . 1 . . Recycling Unit Hacks 6 | . 2 . 4 Report Inventory 1 | . . . 1 Retrieve Components 5 | . 2 . 3 Scanalyzer . | . . . . Garrison Access Hacks . | . . . . Unauthorized Hacks 21 | . 10 . 11 Terminals 8 | . 7 . 1 Track 1 | . 1 . . Botnet 5 | . 4 . 1 Disrupt 1 | . 1 . . Operators 1 | . 1 . . Fabricators . | . . . . Repair Stations . | . . . . Recycling Units 13 | . 3 . 10 Monitor 1 | . . . 1 Reject 4 | . 1 . 3 Recyclers 1 | . . . 1 Mask 1 | . . . 1 Tunnel 6 | . 2 . 4 Scanalyzers . | . . . . Garrison Access . | . . . . Data Cores Recovered . | . . . . Used . | . . . . Hacking Detections 18 | . 11 . 7 Full Trace Events 4 | . 1 . 3 Feedback Events . | . . . . Feedback Blocked . | . . . . Robot Schematics Acquired . | . . . . Robots Built . | . . . . Authchips . | . . . . Time . | . . . . Total Robot Build Rating . | . . . . Part Schematics Acquired 3 | . . . 3 Parts Built . | . . . . Authchips . | . . . . Time . | . . . . Total Part Build Rating . | . . . . Part Studies Acquired . | . . . . Parts Repaired 1 | . 1 . . Time 26 | . 26 . . Parts Recycled . | . . . . Recycled Matter . | . . . . Retrieved Matter . | . . . . Retrieved Components 21 | . 18 . 3 Parts Scanalyzed . | . . . . Part Schematics Acquired . | . . . . Parts Damaged . | . . . . Bothacking | -11 -10 -10 -7 ------------ Run | Yrd Mat Sub Rec Used RIF Installer . | . . . . Robots Hacked . | . . . . Non-combat . | . . . . Combat . | . . . . Robot Hacks Applied . | . . . . Relay Couplers Released . | . . . . Fabnet Peak Effective % . | . . . . Robots Rewired . | . . . . Allies Hacked . | . . . . Hacks Repelled . | . . . . Allies | -11 -10 -10 -7 -------- Run | Yrd Mat Sub Rec Total Allies . | . . . . Largest Group . | . . . . Highest-Rated Group . | . . . . Highest-Rated Ally . | . . . . Total Orders . | . . . . Ally Attacks . | . . . . Total Damage . | . . . . Kills . | . . . . Allies Corrupted . | . . . . Allies Melted . | . . . . Intel | -11 -10 -10 -7 ------- Run | Yrd Mat Sub Rec Active Infowar (turns) 1168 | 13 1155 . . Terrain 1168 | 13 1155 . . Robot Analysis Total 3 | . 3 . . Derelict Logs Recovered . | . . . . Drone Launches . | . . . . Drone Recoveries . | . . . . Exploration | -11 -10 -10 -7 ------------- Run | Yrd Mat Sub Rec Turns Passed 3699 | 497 1456 1099 647 Spaces Moved 2250 | 312 883 602 453 Core 8 | 8 . . . Treads 22 | . . 3 19 Legs 1475 | 304 883 288 . Wheels 745 | . . 311 434 Hover . | . . . . Flight . | . . . . Fastest Speed 50 | 50 120 95 125 Average Speed 127 | 118 120 142 129 Slowest Speed 240 | 120 120 240 240 Overloaded Moves . | . . . . Propulsion Burnouts . | . . . . Robots Hopped . | . . . . Potential Cave-ins . | . . . . Cave-ins Triggered . | . . . . Exploration Rate (%) 54 | 6 99 31 83 Regions Visited 3 Branch Regions 2 Pre-discovered Areas 7 | . 2 1 4 Known Exits Taken . | . . . . Unknown Exits Taken 3 | 1 1 1 . Scrap Searched . | . . . . Spaces Dug 3 | . . . 3 Terrain Destroyed 10 | 5 1 . 4 Melee 3 | . . . 3 Projectile 2 | . 1 . 1 AOE 5 | 5 . . . Terrain Rammed . | . . . . Walls Destroyed . | . . . . Machines Disabled . | . . . . Actions | -11 -10 -10 -7 --------- Run | Yrd Mat Sub Rec Total 2791 | 374 1172 742 503 Wait 269 | . 213 42 14 Move 2247 | 311 882 601 453 Hop . | . . . . Pick Up 45 | 6 8 20 11 Fast Attach 11 | 7 . 4 . Attach 7 | . . 6 1 Detach 1 | . . 1 . Swap 25 | . 11 10 4 Drop 26 | . 7 8 11 Fire 155 | 50 51 48 6 Melee 3 | . . . 3 Ram . | . . . . Kick . | . . . . Crush . | . . . . Escape Stasis . | . . . . Rewire . | . . . . Trap . | . . . . Miscellaneous 2 | . . 2 . Route ------- -11/Scrapyard -10/Materials (discovered 5 exits: [*Mat x3] / *Min / [*Sub]) -10/Subcaves -7/Recycling (discovered 1 exit: [*Fac]) History --------- Turn | Location | Event 11 | -11/Scrapyard | Discovered new exit (range 16) 498 | -11/Scrapyard | Entered Materials 506 | -10/Materials | Build established: Mutant 674 | -10/Materials | Discovered new exit (range 10) 914 | -10/Materials | Discovered new exit (range 5) 1072 | -10/Materials | Discovered new exit (range 13) 1322 | -10/Materials | Central database locked down 1348 | -10/Materials | Identified exit to Mines 1476 | -10/Materials | Discovered new exit (range 5) 1866 | -10/Materials | Repaired EM Pulse Gun 1947 | -10/Materials | Discovered new exit (range 7) 1954 | -10/Materials | Entered Subcaves 1955 | -10/Subcaves | Approached by a straggling Scientist 2427 | -10/Subcaves | Learned location of Zion (-6) 2427 | -10/Subcaves | Met a Zionite searching for "candidates" 2612 | -10/Subcaves | Shifting Twisted Machinery released Sub. Power Source 2620 | -10/Subcaves | Shifting Twisted Machinery released Sub. Laser 2700 | -10/Subcaves | Ambushed by Subdwellers from Twisted Machinery 2705 | -10/Subcaves | Core integrity fell below 50% 2750 | -10/Subcaves | Core integrity fell below 20% 2784 | -10/Subcaves | Lost 4 parts (2n2w) 2837 | -10/Subcaves | Discovered new exit (range 10) 3053 | -10/Subcaves | Entered Recycling 3509 | -7/Recycling | Discovered new exit (range 15) 3700 | -7/Recycling | Destroyed by Y-54 Guardian with Gatling Laser Last Messages --------------- Schematic downloaded. 03669_ Connecting with Terminal... 03684_ Connecting with Recycling Unit... >>Retrieve(Components) Retrieving 1 components... Imp. Cooling System >>Trojan(Reject) Trojan loaded successfully. Testing... Ejection routine running. >>Force(Tunnel) DISCOVERED[-9/Mines] 03686_ Dropped Imp. Heat Sink. 03687_ Acquired Imp. Cooling System. 03693_ Connecting with Recycling Unit... >>Force(Tunnel) DISCOVERED[-5/Extension] 03693_ EM Disruption Field tumbles out of recycling unit. 03693_ Y-54 Guardian springs to life. Map ----- +----------------------------------------------------+ | ??# # #??????? | | ??##+##+##### #??????? | | ???# #???# #??????? | | ???# #???# #??????? | | ???# ##### #??????? | | ???# #??????? | | ???# #??????? | | #### #??????? | | #""" #??????? | | #"T +??????? | | #""" ???????? | | #### ???????? | | ???# #####??? | | ???# #??? | | ???# #??? | | ???# #??? | | ???# #??? | | ???# #??? | | ???# #### | | ???# | | ?### r | | ?#"" ! | | ?#"Y | | ?#"" | | ?### | | ?#""@ u | | ?#" ! | | ?#"" u##### #"T##+ | | ?### Y#??# #""# | | ???# ##??# #### | | ???#+##+######;# #???# #??# | | ???????????????# #???# #??# | | ???????????????# #???# #??#"" | | ???????????????# #???# #??#"Y | | ???????????????# #???# #??#"" | | ???????????#####+#####+##?# | | ???????????# #?### | | ???????????# #???? | | ??????????## ##### | | ??????????# # | | ??????????## # | | ???????????# + T | | ???????????# # | | ???????????# # | | ???????????# ##### | | ???????????# #???? | | ???????????# #???? | | ???????????# #???? | | ???????????# ############???? | | ???????????##???????????????? | +----------------------------------------------------+ Best States ------------- Heat Dissipation 35 Energy Generation 15 Energy Capacity 250 Matter Stores 300 Matter Capacity 300 Sight Range 16 Terrain Scan Range 16 Terrain Scan Density 10 Armor Coverage 800 Core Shielding 20 Evasion (%) 55 Recoil Reduction 1 Offensive Hacking 10 Authchip Count 1 Item Schematics ----------------- Force Field | -7/Recycling | Hacked Imp. System Shield | -7/Recycling | Hacked Hvy. Reactive Plating | -7/Recycling | Hacked Robot Schematics ------------------ None Fabricated ------------ Nothing Repaired ---------- EM Pulse Gun | 37% | -10/Materials Studied --------- None Alien Tech Used ----------------- None Achievements -------------- None Challenges ------------ None Game ------ Seed SwordXenonPod Manual? 0 Play Time 00:40:17 Cumulative 665.4 hours Start 2025.11.02 @ 18:22:30 End 2025.11.02 @ 19:04:40 Sessions 1 Manual Loads 0 Difficulty Rogue Special Mode None Game No. 456 Rogue 456 Adventurer 0 Explorer 0 Win Type - Total 1 Types 1/0/0/0/0/0/0/0/0/0 Lore% 54 Gallery% 65 Achievement% 36 Wizard Run 0 Options --------- Layout 1 ASCII 0 Keyboard 0 Movement Mouse Keybinds 0 Fullscreen 1 Font 20/SmallcapsGlow Map View 54x42 Zoom Use 0% Tactical HUD 1 Map Filters NONE Filters NONE Steam 1 RUN: 3d0309b6-86a9-46ec-a6fd-dc4701d1e95a